[Event "Early-Titled-Tuesday-Blitz-April-02-2024"]
[Site "Chess.com"]
[Date "2024.04.02"]
[Round "8"]
[White "Aisen1011"]
[Black "Djager97"]
[Result "1-0"]
[WhiteElo "2505"]
[BlackElo "2591"]
[TimeControl "180+1"]
[EndTime "9:29:18 PDT"]
[Termination "Aisen1011 won on time"]

1. d4 {[%clk 0:02:59.1]} 1... Nf6 {[%clk 0:02:59.5]} 2. c4 {[%clk 0:02:59.6]}
2... c5 {[%clk 0:03:00.1]} 3. d5 {[%clk 0:02:59.8]} 3... d6 {[%clk 0:03:00.8]}
4. Nc3 {[%clk 0:03:00]} 4... g6 {[%clk 0:03:01.5]} 5. e4 {[%clk 0:03:00.3]} 5...
Bg7 {[%clk 0:03:02.2]} 6. Nf3 {[%clk 0:02:59.4]} 6... O-O {[%clk 0:03:02.7]} 7.
h3 {[%clk 0:02:59.8]} 7... e6 {[%clk 0:03:03.1]} 8. Bd3 {[%clk 0:03:00.3]} 8...
exd5 {[%clk 0:03:03.6]} 9. exd5 {[%clk 0:03:01.2]} 9... Re8+ {[%clk 0:03:04.2]}
10. Be3 {[%clk 0:03:01.8]} 10... Rxe3+ {[%clk 0:03:04.8]} 11. fxe3 {[%clk
0:03:00.7]} 11... Qe7 {[%clk 0:03:05.7]} 12. e4 {[%clk 0:02:55.5]} 12... Nh5
{[%clk 0:03:00]} 13. O-O {[%clk 0:02:55.4]} 13... Nd7 {[%clk 0:02:59.6]} 14. Qd2
{[%clk 0:02:23]} 14... Ne5 {[%clk 0:02:42.7]} 15. Nxe5 {[%clk 0:02:23]} 15...
Bxe5 {[%clk 0:02:43.6]} 16. Ne2 {[%clk 0:02:19.4]} 16... Qh4 {[%clk 0:02:42.4]}
17. Rf3 {[%clk 0:02:18.3]} 17... Bd7 {[%clk 0:02:17.9]} 18. Raf1 {[%clk
0:02:18.3]} 18... Rf8 {[%clk 0:02:18.6]} 19. Qe1 {[%clk 0:02:18.5]} 19... Qg5
{[%clk 0:02:09.5]} 20. Qf2 {[%clk 0:01:51.2]} 20... Qe7 {[%clk 0:01:56.2]} 21.
g4 {[%clk 0:01:29.3]} 21... Ng7 {[%clk 0:01:55.9]} 22. Kh1 {[%clk 0:01:26.6]}
22... h5 {[%clk 0:01:45.7]} 23. gxh5 {[%clk 0:01:07.8]} 23... Nxh5 {[%clk
0:01:46.6]} 24. Rg1 {[%clk 0:00:57.2]} 24... Kg7 {[%clk 0:01:42]} 25. b3 {[%clk
0:00:32.2]} 25... Rh8 {[%clk 0:01:39]} 26. Kg2 {[%clk 0:00:32.2]} 26... a6
{[%clk 0:01:24]} 27. Kf1 {[%clk 0:00:30.3]} 27... b5 {[%clk 0:01:21.9]} 28. Ke1
{[%clk 0:00:27]} 28... bxc4 {[%clk 0:01:18.9]} 29. Bxc4 {[%clk 0:00:27.9]} 29...
a5 {[%clk 0:01:19.2]} 30. a4 {[%clk 0:00:23.4]} 30... Nf6 {[%clk 0:01:13.9]} 31.
Bd3 {[%clk 0:00:15.5]} 31... Rb8 {[%clk 0:00:54]} 32. Bc2 {[%clk 0:00:15.9]}
32... c4 {[%clk 0:00:53.5]} 33. bxc4 {[%clk 0:00:11.6]} 33... Rb2 {[%clk
0:00:54.4]} 34. Kd1 {[%clk 0:00:10.9]} 34... Qe8 {[%clk 0:00:51.2]} 35. Nc3
{[%clk 0:00:05.9]} 35... Bxc3 {[%clk 0:00:30.7]} 36. Rxc3 {[%clk 0:00:06.8]}
36... Nxe4 {[%clk 0:00:31.1]} 37. Qd4+ {[%clk 0:00:05.9]} 37... Nf6 {[%clk
0:00:26.9]} 38. Rf3 {[%clk 0:00:04.1]} 38... Bf5 {[%clk 0:00:21.2]} 39. Bxf5
{[%clk 0:00:02.8]} 39... Qxa4+ {[%clk 0:00:20.8]} 40. Ke1 {[%clk 0:00:01.5]}
40... Qa1+ {[%clk 0:00:07.8]} 41. Qd1 {[%clk 0:00:02.2]} 41... Qa2 {[%clk
0:00:01.8]} 42. Bd3 {[%clk 0:00:03]} 1-0

[Event "Early-Titled-Tuesday-Blitz-April-02-2024"]
[Site "Chess.com"]
[Date "2024.04.02"]
[Round "8"]
[White "Rurep26"]
[Black "sergoy"]
[Result "0-1"]
[WhiteElo "2724"]
[BlackElo "2896"]
[TimeControl "180+1"]
[EndTime "9:29:19 PDT"]
[Termination "sergoy won on time"]

1. d4 {[%clk 0:03:00.9]} 1... Nf6 {[%clk 0:02:59.6]} 2. Bf4 {[%clk 0:02:58.8]}
2... g6 {[%clk 0:02:58.1]} 3. e3 {[%clk 0:02:59.2]} 3... Bg7 {[%clk 0:02:58.8]}
4. Nd2 {[%clk 0:02:59.4]} 4... O-O {[%clk 0:02:59.3]} 5. h3 {[%clk 0:02:59.9]}
5... d6 {[%clk 0:02:59.9]} 6. Ngf3 {[%clk 0:03:00.4]} 6... Nbd7 {[%clk
0:03:00.2]} 7. Be2 {[%clk 0:03:00.7]} 7... Re8 {[%clk 0:03:00.1]} 8. Bh2 {[%clk
0:03:01.2]} 8... e5 {[%clk 0:03:00.4]} 9. dxe5 {[%clk 0:03:01.8]} 9... dxe5
{[%clk 0:03:00.7]} 10. O-O {[%clk 0:03:01.8]} 10... Qe7 {[%clk 0:02:57.7]} 11.
c3 {[%clk 0:03:00.7]} 11... b6 {[%clk 0:02:50.8]} 12. a4 {[%clk 0:02:57.2]}
12... a5 {[%clk 0:02:50.3]} 13. Bc4 {[%clk 0:02:53.6]} 13... Bb7 {[%clk
0:02:45]} 14. Ng5 {[%clk 0:02:43.1]} 14... Rf8 {[%clk 0:02:42.4]} 15. Qc2 {[%clk
0:02:42.3]} 15... Rad8 {[%clk 0:02:28]} 16. Rad1 {[%clk 0:02:28.5]} 16... Kh8
{[%clk 0:02:21.3]} 17. Nge4 {[%clk 0:02:02.3]} 17... Nxe4 {[%clk 0:02:21.2]} 18.
Nxe4 {[%clk 0:02:03.2]} 18... f5 {[%clk 0:02:21.9]} 19. Nd2 {[%clk 0:01:48.9]}
19... Nc5 {[%clk 0:02:12]} 20. Kh1 {[%clk 0:01:05.9]} 20... Qg5 {[%clk
0:02:06.3]} 21. Rg1 {[%clk 0:01:05.1]} 21... Qh5 {[%clk 0:02:02.2]} 22. f3
{[%clk 0:01:00.1]} 22... e4 {[%clk 0:01:54.2]} 23. Be2 {[%clk 0:00:50.4]} 23...
Nd3 {[%clk 0:01:45.4]} 24. Rgf1 {[%clk 0:00:49.3]} 24... Rd7 {[%clk 0:01:03.7]}
25. Nb3 {[%clk 0:00:31.8]} 25... exf3 {[%clk 0:00:41]} 26. Bxf3 {[%clk
0:00:28.9]} 26... Bxf3 {[%clk 0:00:38.9]} 27. gxf3 {[%clk 0:00:29.8]} 27... Rfd8
{[%clk 0:00:35.9]} 28. Rd2 {[%clk 0:00:19.9]} 28... c5 {[%clk 0:00:34.7]} 29. c4
{[%clk 0:00:19]} 29... Nb4 {[%clk 0:00:33.6]} 30. Rxd7 {[%clk 0:00:16.5]} 30...
Rxd7 {[%clk 0:00:34.5]} 31. Qg2 {[%clk 0:00:16.4]} 31... Qh4 {[%clk 0:00:31.7]}
32. f4 {[%clk 0:00:12.6]} 32... Qf6 {[%clk 0:00:31.4]} 33. Qa8+ {[%clk 0:00:11]}
33... Rd8 {[%clk 0:00:28]} 34. Qb7 {[%clk 0:00:08.8]} 34... Re8 {[%clk
0:00:24.7]} 35. Re1 {[%clk 0:00:07.9]} 35... Qxb2 {[%clk 0:00:24]} 36. Nc1
{[%clk 0:00:07.5]} 36... Qd2 {[%clk 0:00:23.2]} 37. Bg3 {[%clk 0:00:07.6]} 37...
Nc2 {[%clk 0:00:22.1]} 38. Qc6 {[%clk 0:00:07.5]} 38... Rf8 {[%clk 0:00:20.3]}
39. Rg1 {[%clk 0:00:05.3]} 39... Nxe3 {[%clk 0:00:18.6]} 40. Qf3 {[%clk
0:00:03.4]} 40... Nxc4 {[%clk 0:00:15.2]} 41. Nd3 {[%clk 0:00:03.8]} 41... Qe3
{[%clk 0:00:14.8]} 42. Qd5 {[%clk 0:00:03.1]} 42... Qd4 {[%clk 0:00:14.1]} 43.
Qf3 {[%clk 0:00:02.6]} 43... Nd2 {[%clk 0:00:14.6]} 44. Qe2 {[%clk 0:00:01.8]}
44... Ne4 {[%clk 0:00:15.2]} 45. Bh4 {[%clk 0:00:01.9]} 45... c4 {[%clk
0:00:14.5]} 46. Ne1 {[%clk 0:00:02.1]} 46... c3 {[%clk 0:00:14.7]} 47. Nf3
{[%clk 0:00:02.6]} 47... Qc5 {[%clk 0:00:15.3]} 48. Qg2 {[%clk 0:00:01.8]} 48...
c2 {[%clk 0:00:15.3]} 49. Rc1 {[%clk 0:00:01.5]} 49... Rc8 {[%clk 0:00:16]} 0-1

[Event "Early-Titled-Tuesday-Blitz-April-02-2024"]
[Site "Chess.com"]
[Date "2024.04.02"]
[Round "8"]
[White "DanylaBagrov"]
[Black "LeoWin2012"]
[Result "0-1"]
[WhiteElo "2492"]
[BlackElo "2328"]
[TimeControl "180+1"]
[EndTime "9:29:20 PDT"]
[Termination "LeoWin2012 won by resignation"]

1. d4 {[%clk 0:03:00.9]} 1... Nf6 {[%clk 0:02:54.9]} 2. Bf4 {[%clk 0:03:00.2]}
2... d6 {[%clk 0:02:54.9]} 3. e3 {[%clk 0:02:59.9]} 3... Nbd7 {[%clk 0:02:54.2]}
4. h3 {[%clk 0:02:59.3]} 4... e5 {[%clk 0:02:54.3]} 5. Bh2 {[%clk 0:02:51.9]}
5... Be7 {[%clk 0:02:53.6]} 6. c4 {[%clk 0:02:45.9]} 6... exd4 {[%clk
0:02:53.6]} 7. exd4 {[%clk 0:02:44.6]} 7... O-O {[%clk 0:02:53.5]} 8. Nf3 {[%clk
0:02:38.3]} 8... Re8 {[%clk 0:02:52.8]} 9. Be2 {[%clk 0:02:35.7]} 9... c5 {[%clk
0:02:48.4]} 10. O-O {[%clk 0:02:30.5]} 10... Qb6 {[%clk 0:02:47.1]} 11. Nc3
{[%clk 0:02:08.6]} 11... Qxb2 {[%clk 0:02:42.8]} 12. Nb5 {[%clk 0:02:06.6]}
12... Bd8 {[%clk 0:02:35]} 13. Re1 {[%clk 0:01:58.6]} 13... cxd4 {[%clk
0:02:33.4]} 14. Nfxd4 {[%clk 0:01:43.1]} 14... Ba5 {[%clk 0:02:32.5]} 15. Nxd6
{[%clk 0:01:36.4]} 15... Bxe1 {[%clk 0:02:26.8]} 16. Nxe8 {[%clk 0:01:34]} 16...
Nxe8 {[%clk 0:02:20.7]} 17. Rb1 {[%clk 0:01:13.1]} 17... Qd2 {[%clk 0:01:59.7]}
18. Qxe1 {[%clk 0:00:57.7]} 18... Qxd4 {[%clk 0:01:58.7]} 19. Bg4 {[%clk
0:00:53.8]} 19... Ndf6 {[%clk 0:01:51.5]} 20. Rd1 {[%clk 0:00:49.9]} 20... Qb6
{[%clk 0:01:37.4]} 21. c5 {[%clk 0:00:47.8]} 21... Qc6 {[%clk 0:01:28.3]} 22.
Rd8 {[%clk 0:00:45.6]} 22... h5 {[%clk 0:01:16.3]} 23. Bf5 {[%clk 0:00:34.9]}
23... b6 {[%clk 0:01:03.8]} 24. Qe7 {[%clk 0:00:12.1]} 24... Bb7 {[%clk
0:00:53.7]} 25. f3 {[%clk 0:00:12.6]} 25... Rxd8 {[%clk 0:00:47.1]} 26. Qxd8
{[%clk 0:00:11.8]} 26... Qxc5+ {[%clk 0:00:47.5]} 27. Kh1 {[%clk 0:00:11.9]}
27... Qxf5 {[%clk 0:00:44.4]} 28. Qb8 {[%clk 0:00:12.1]} 28... Bd5 {[%clk
0:00:31.3]} 29. Qxa7 {[%clk 0:00:12]} 29... Qb1+ {[%clk 0:00:30.9]} 30. Bg1
{[%clk 0:00:11.7]} 30... Bxa2 {[%clk 0:00:28.4]} 31. Qxb6 {[%clk 0:00:07.7]}
31... Qxb6 {[%clk 0:00:28.3]} 32. Bxb6 {[%clk 0:00:08.6]} 32... Be6 {[%clk
0:00:28.5]} 33. Kh2 {[%clk 0:00:09.1]} 33... Nd5 {[%clk 0:00:28.5]} 34. Bc5
{[%clk 0:00:08.8]} 34... f5 {[%clk 0:00:25.9]} 35. Kg3 {[%clk 0:00:09.4]} 35...
g5 {[%clk 0:00:25.7]} 36. Kf2 {[%clk 0:00:08.2]} 36... h4 {[%clk 0:00:25.9]} 37.
Ba3 {[%clk 0:00:07.7]} 37... f4 {[%clk 0:00:25.9]} 38. Bb2 {[%clk 0:00:07.9]}
38... Kf7 {[%clk 0:00:25.2]} 39. Be5 {[%clk 0:00:08.5]} 39... Kg6 {[%clk
0:00:25.5]} 40. Kg1 {[%clk 0:00:08.4]} 40... Kf5 {[%clk 0:00:25.9]} 41. Bb8
{[%clk 0:00:08.1]} 41... Nef6 {[%clk 0:00:26.2]} 42. Kf2 {[%clk 0:00:08.6]}
42... Nd7 {[%clk 0:00:26.5]} 43. Bd6 {[%clk 0:00:08.7]} 43... N7b6 {[%clk
0:00:26.5]} 44. Bc5 {[%clk 0:00:08.7]} 44... Nc4 {[%clk 0:00:26.9]} 45. Bd4
{[%clk 0:00:09.3]} 45... Nce3 {[%clk 0:00:27.1]} 46. Bc5 {[%clk 0:00:09.9]}
46... Nc4 {[%clk 0:00:25.1]} 47. Bf8 {[%clk 0:00:10.2]} 47... Nc3 {[%clk
0:00:25.5]} 48. Bc5 {[%clk 0:00:10.5]} 48... Nd1+ {[%clk 0:00:25.7]} 49. Ke1
{[%clk 0:00:09.3]} 49... Nde3 {[%clk 0:00:25.9]} 50. Kf2 {[%clk 0:00:09.4]}
50... Nb2 {[%clk 0:00:23.7]} 51. Bd4 {[%clk 0:00:09.1]} 51... Nd3+ {[%clk
0:00:22.3]} 52. Kg1 {[%clk 0:00:09.7]} 52... Ne1 {[%clk 0:00:20.9]} 53. g4+
{[%clk 0:00:04.7]} 53... hxg3 {[%clk 0:00:20.3]} 54. Bb6 {[%clk 0:00:04.1]}
54... Nxf3+ {[%clk 0:00:19.7]} 0-1

[Event "Early-Titled-Tuesday-Blitz-April-02-2024"]
[Site "Chess.com"]
[Date "2024.04.02"]
[Round "8"]
[White "VanRommel28"]
[Black "tactic"]
[Result "1-0"]
[WhiteElo "2517"]
[BlackElo "2596"]
[TimeControl "180+1"]
[EndTime "9:29:22 PDT"]
[Termination "VanRommel28 won by resignation"]

1. d4 {[%clk 0:03:00.9]} 1... Nf6 {[%clk 0:03:00.2]} 2. Nf3 {[%clk 0:03:00.5]}
2... e6 {[%clk 0:02:53.9]} 3. Bf4 {[%clk 0:03:00.4]} 3... d5 {[%clk 0:02:53.9]}
4. e3 {[%clk 0:02:59]} 4... Bd6 {[%clk 0:02:53.8]} 5. Nbd2 {[%clk 0:02:58.7]}
5... O-O {[%clk 0:02:53.9]} 6. c3 {[%clk 0:02:57.6]} 6... c5 {[%clk 0:02:54]} 7.
h4 {[%clk 0:02:57.2]} 7... Qc7 {[%clk 0:02:49.2]} 8. Bxd6 {[%clk 0:02:54.5]}
8... Qxd6 {[%clk 0:02:49.5]} 9. h5 {[%clk 0:02:55.1]} 9... h6 {[%clk 0:02:48.7]}
10. Ne5 {[%clk 0:02:53.3]} 10... Nfd7 {[%clk 0:02:30.9]} 11. Ndf3 {[%clk
0:02:50.7]} 11... Nc6 {[%clk 0:02:29.8]} 12. Nxc6 {[%clk 0:02:46]} 12... bxc6
{[%clk 0:02:29.4]} 13. Bd3 {[%clk 0:02:46]} 13... cxd4 {[%clk 0:02:22.9]} 14.
exd4 {[%clk 0:02:35.9]} 14... e5 {[%clk 0:02:23.3]} 15. dxe5 {[%clk 0:02:32.6]}
15... Nxe5 {[%clk 0:02:24.2]} 16. Nxe5 {[%clk 0:02:26.7]} 16... Qxe5+ {[%clk
0:02:25.1]} 17. Qe2 {[%clk 0:02:27.1]} 17... Qg5 {[%clk 0:02:24.8]} 18. Qe3
{[%clk 0:02:13.9]} 18... Qxe3+ {[%clk 0:02:17.3]} 19. fxe3 {[%clk 0:02:13.6]}
19... Re8 {[%clk 0:02:06.2]} 20. Kf2 {[%clk 0:02:10.5]} 20... Re5 {[%clk
0:02:05.3]} 21. Rh4 {[%clk 0:02:08]} 21... Bf5 {[%clk 0:02:02.2]} 22. Rd1 {[%clk
0:01:52.5]} 22... Rae8 {[%clk 0:01:59.1]} 23. g4 {[%clk 0:01:39.6]} 23... Bxd3
{[%clk 0:01:39.9]} 24. Rxd3 {[%clk 0:01:29]} 24... Re4 {[%clk 0:01:40.4]} 25.
Kf3 {[%clk 0:01:21.3]} 25... f5 {[%clk 0:01:40.7]} 26. Kf2 {[%clk 0:01:09.6]}
26... fxg4 {[%clk 0:01:36.5]} 27. Rd4 {[%clk 0:01:09.5]} 27... g3+ {[%clk
0:01:20.6]} 28. Kxg3 {[%clk 0:01:07.8]} 28... Rxe3+ {[%clk 0:01:21.4]} 29. Kf2
{[%clk 0:01:07.1]} 29... Re2+ {[%clk 0:01:21.8]} 30. Kf1 {[%clk 0:01:07.4]}
30... Re1+ {[%clk 0:01:18.4]} 31. Kf2 {[%clk 0:01:06.1]} 31... R8e2+ {[%clk
0:01:19]} 32. Kf3 {[%clk 0:01:06.4]} 32... Rxb2 {[%clk 0:01:19.4]} 33. Rhg4
{[%clk 0:01:00.7]} 33... Rf1+ {[%clk 0:01:13.8]} 34. Ke3 {[%clk 0:01:00.3]}
34... Rff2 {[%clk 0:01:04.9]} 35. Ra4 {[%clk 0:00:56.6]} 35... Rxa2 {[%clk
0:01:03.2]} 36. Rab4 {[%clk 0:00:56.4]} 36... c5 {[%clk 0:00:55.4]} 37. Rb8+
{[%clk 0:00:50.6]} 37... Kh7 {[%clk 0:00:56.1]} 38. Rb7 {[%clk 0:00:50.8]} 38...
Rae2+ {[%clk 0:00:47.6]} 39. Kd3 {[%clk 0:00:50.7]} 39... Rd2+ {[%clk 0:00:39]}
40. Ke3 {[%clk 0:00:50.6]} 40... Rde2+ {[%clk 0:00:23]} 41. Kd3 {[%clk
0:00:50.8]} 41... c4+ {[%clk 0:00:22.3]} 42. Kd4 {[%clk 0:00:51.4]} 42... Re4+
{[%clk 0:00:22.7]} 43. Rxe4 {[%clk 0:00:52]} 43... dxe4 {[%clk 0:00:23.4]} 44.
Kxc4 {[%clk 0:00:41.2]} 44... Rh2 {[%clk 0:00:16.8]} 45. Kd4 {[%clk 0:00:39.9]}
45... Rxh5 {[%clk 0:00:14.6]} 46. c4 {[%clk 0:00:40.4]} 46... a5 {[%clk
0:00:13.9]} 47. c5 {[%clk 0:00:40.2]} 47... e3 {[%clk 0:00:14.3]} 48. c6 {[%clk
0:00:36.4]} 48... Rh4+ {[%clk 0:00:10.2]} 49. Kd5 {[%clk 0:00:28.7]} 49... Re4
{[%clk 0:00:10.4]} 50. Kxe4 {[%clk 0:00:27.2]} 50... e2 {[%clk 0:00:10.8]} 51.
Rb1 {[%clk 0:00:27.5]} 51... a4 {[%clk 0:00:07.7]} 52. c7 {[%clk 0:00:27.7]}
52... h5 {[%clk 0:00:08.6]} 53. c8=Q {[%clk 0:00:28]} 53... Kh6 {[%clk
0:00:09.5]} 54. Qe6+ {[%clk 0:00:26.9]} 54... g6 {[%clk 0:00:09.9]} 55. Kf3
{[%clk 0:00:20.8]} 55... a3 {[%clk 0:00:09.9]} 56. Qe3+ {[%clk 0:00:19.9]} 56...
Kg7 {[%clk 0:00:08.5]} 57. Rb7+ {[%clk 0:00:20]} 57... Kf6 {[%clk 0:00:09.1]}
58. Rb6+ {[%clk 0:00:18.3]} 58... Kf7 {[%clk 0:00:08.3]} 59. Qe6+ {[%clk
0:00:17.7]} 59... Kg7 {[%clk 0:00:08.5]} 60. Qxg6+ {[%clk 0:00:17.2]} 60... Kf8
{[%clk 0:00:09.1]} 61. Rb8+ {[%clk 0:00:15.3]} 61... Ke7 {[%clk 0:00:09.7]} 62.
Re8+ {[%clk 0:00:15.8]} 62... Kd7 {[%clk 0:00:10.4]} 63. Qe6+ {[%clk 0:00:16.4]}
63... Kc7 {[%clk 0:00:11.1]} 64. Rc8+ {[%clk 0:00:17.1]} 64... Kb7 {[%clk
0:00:11.7]} 65. Qc6+ {[%clk 0:00:17.8]} 1-0

[Event "Early-Titled-Tuesday-Blitz-April-02-2024"]
[Site "Chess.com"]
[Date "2024.04.02"]
[Round "8"]
[White "tortorchess"]
[Black "arnash_bauyrzhan"]
[Result "1-0"]
[WhiteElo "2224"]
[BlackElo "2337"]
[TimeControl "180+1"]
[EndTime "9:29:22 PDT"]
[Termination "tortorchess won by resignation"]

1. d4 {[%clk 0:03:00.9]} 1... d5 {[%clk 0:02:58.8]} 2. c4 {[%clk 0:03:00.9]}
2... e6 {[%clk 0:02:58.5]} 3. Nc3 {[%clk 0:03:00.2]} 3... Be7 {[%clk 0:02:58.4]}
4. Nf3 {[%clk 0:03:00.3]} 4... Nf6 {[%clk 0:02:58.2]} 5. Bg5 {[%clk 0:03:00.2]}
5... O-O {[%clk 0:02:58.4]} 6. e3 {[%clk 0:03:00.1]} 6... h6 {[%clk 0:02:56.9]}
7. Bh4 {[%clk 0:02:59.7]} 7... b6 {[%clk 0:02:56.9]} 8. Bd3 {[%clk 0:02:59.3]}
8... Bb7 {[%clk 0:02:56.4]} 9. O-O {[%clk 0:02:59.1]} 9... Nbd7 {[%clk 0:02:56]}
10. Rc1 {[%clk 0:02:55.7]} 10... c5 {[%clk 0:02:54.3]} 11. a3 {[%clk 0:02:49.5]}
11... dxc4 {[%clk 0:02:52.9]} 12. Bxc4 {[%clk 0:02:48.7]} 12... Ne4 {[%clk
0:02:53.1]} 13. Nxe4 {[%clk 0:02:41.8]} 13... Bxe4 {[%clk 0:02:49.7]} 14. Bg3
{[%clk 0:02:39.8]} 14... cxd4 {[%clk 0:02:44.9]} 15. exd4 {[%clk 0:02:32]} 15...
Nf6 {[%clk 0:02:43.5]} 16. Ne5 {[%clk 0:02:12.8]} 16... Bd6 {[%clk 0:02:29.6]}
17. f3 {[%clk 0:02:01.5]} 17... Bd5 {[%clk 0:02:27.4]} 18. Bxd5 {[%clk
0:01:59.7]} 18... Nxd5 {[%clk 0:02:27.2]} 19. Nc6 {[%clk 0:01:58.8]} 19... Qd7
{[%clk 0:02:22.9]} 20. Bf2 {[%clk 0:01:52.1]} 20... Bf4 {[%clk 0:02:07.2]} 21.
Rc2 {[%clk 0:01:47.7]} 21... Rac8 {[%clk 0:02:05]} 22. Ne5 {[%clk 0:01:46.3]}
22... Bxe5 {[%clk 0:01:31.7]} 23. dxe5 {[%clk 0:01:43.2]} 23... Rxc2 {[%clk
0:01:32.2]} 24. Qxc2 {[%clk 0:01:43.3]} 24... Rc8 {[%clk 0:01:32.5]} 25. Qd2
{[%clk 0:01:41]} 25... Qa4 {[%clk 0:01:31.6]} 26. Rc1 {[%clk 0:01:35.2]} 26...
Rc4 {[%clk 0:01:25.6]} 27. h3 {[%clk 0:01:24.5]} 27... Qc6 {[%clk 0:01:09.4]}
28. Rxc4 {[%clk 0:01:18.4]} 28... Qxc4 {[%clk 0:01:10]} 29. Qd4 {[%clk
0:01:10.5]} 29... Qc1+ {[%clk 0:00:35]} 30. Kh2 {[%clk 0:01:09.2]} 30... Qf4+
{[%clk 0:00:31.1]} 31. Qxf4 {[%clk 0:01:03.2]} 31... Nxf4 {[%clk 0:00:32]} 32.
Bd4 {[%clk 0:01:02]} 32... Ne2 {[%clk 0:00:28.1]} 33. Be3 {[%clk 0:00:58.8]}
33... g5 {[%clk 0:00:22.5]} 34. g3 {[%clk 0:00:58.4]} 34... f6 {[%clk
0:00:11.5]} 35. exf6 {[%clk 0:00:56.7]} 35... e5 {[%clk 0:00:11.6]} 36. Kg2
{[%clk 0:00:55.8]} 36... Kf7 {[%clk 0:00:09.8]} 37. Kf2 {[%clk 0:00:55.1]} 37...
Nd4 {[%clk 0:00:09.8]} 38. Bxd4 {[%clk 0:00:49.2]} 38... exd4 {[%clk 0:00:09.8]}
39. Ke2 {[%clk 0:00:49.4]} 39... Kxf6 {[%clk 0:00:10.2]} 40. Kd3 {[%clk
0:00:48.5]} 40... Ke5 {[%clk 0:00:10.4]} 41. b3 {[%clk 0:00:37.6]} 41... b5
{[%clk 0:00:09.2]} 42. a4 {[%clk 0:00:34.8]} 42... a6 {[%clk 0:00:08.1]} 43. a5
{[%clk 0:00:33.6]} 43... Kd5 {[%clk 0:00:06.6]} 44. b4 {[%clk 0:00:28.2]} 44...
Ke5 {[%clk 0:00:06.4]} 45. g4 {[%clk 0:00:22.1]} 45... Kf4 {[%clk 0:00:05.4]}
46. Kxd4 {[%clk 0:00:22.1]} 46... Kxf3 {[%clk 0:00:05.9]} 47. Kc5 {[%clk
0:00:22.8]} 47... Kg3 {[%clk 0:00:06.5]} 48. Kb6 {[%clk 0:00:23.3]} 48... Kxh3
{[%clk 0:00:07.1]} 49. Kxa6 {[%clk 0:00:23.7]} 49... Kxg4 {[%clk 0:00:06.6]} 50.
Kxb5 {[%clk 0:00:22.9]} 50... h5 {[%clk 0:00:07.3]} 51. a6 {[%clk 0:00:23.3]}
51... h4 {[%clk 0:00:07.9]} 52. a7 {[%clk 0:00:23.7]} 52... h3 {[%clk
0:00:08.3]} 53. a8=Q {[%clk 0:00:24]} 53... Kg3 {[%clk 0:00:08.2]} 54. Qh1
{[%clk 0:00:23.4]} 54... g4 {[%clk 0:00:07.4]} 55. Kc4 {[%clk 0:00:21.1]} 55...
Kf2 {[%clk 0:00:06.5]} 56. Qh2+ {[%clk 0:00:20.4]} 56... Kf3 {[%clk 0:00:06.1]}
57. b5 {[%clk 0:00:20.9]} 1-0

[Event "Early-Titled-Tuesday-Blitz-April-02-2024"]
[Site "Chess.com"]
[Date "2024.04.02"]
[Round "8"]
[White "Ariadna_Atreides"]
[Black "elcala"]
[Result "1-0"]
[WhiteElo "2197"]
[BlackElo "1820"]
[TimeControl "180+1"]
[EndTime "9:29:22 PDT"]
[Termination "Ariadna_Atreides won by resignation"]

1. d4 {[%clk 0:02:57.5]} 1... d6 {[%clk 0:02:59.3]} 2. g3 {[%clk 0:02:53.6]}
2... Nf6 {[%clk 0:02:58.5]} 3. Bg2 {[%clk 0:02:54]} 3... Nc6 {[%clk 0:02:53]} 4.
Nf3 {[%clk 0:02:43.6]} 4... g6 {[%clk 0:02:52.4]} 5. d5 {[%clk 0:02:35]} 5...
Nb8 {[%clk 0:02:49.5]} 6. O-O {[%clk 0:02:33.7]} 6... Bg7 {[%clk 0:02:50]} 7. c4
{[%clk 0:02:33.4]} 7... O-O {[%clk 0:02:47.2]} 8. Nc3 {[%clk 0:02:31.9]} 8... c6
{[%clk 0:02:47.2]} 9. Nd4 {[%clk 0:02:26.8]} 9... c5 {[%clk 0:02:46.5]} 10. Nf3
{[%clk 0:02:19.6]} 10... Na6 {[%clk 0:02:45.4]} 11. h3 {[%clk 0:02:15.2]} 11...
Nc7 {[%clk 0:02:36]} 12. a4 {[%clk 0:02:12]} 12... Bd7 {[%clk 0:02:34.2]} 13.
Qc2 {[%clk 0:02:04.5]} 13... Bf5 {[%clk 0:02:27.7]} 14. e4 {[%clk 0:02:03.2]}
14... Bd7 {[%clk 0:02:25]} 15. Re1 {[%clk 0:01:49.7]} 15... e5 {[%clk
0:02:18.8]} 16. dxe6 {[%clk 0:01:34.8]} 16... fxe6 {[%clk 0:02:18.1]} 17. e5
{[%clk 0:01:29.6]} 17... dxe5 {[%clk 0:02:02.3]} 18. Nxe5 {[%clk 0:01:29.1]}
18... Nfe8 {[%clk 0:01:56.9]} 19. Bf4 {[%clk 0:01:07.5]} 19... Rb8 {[%clk
0:01:46.9]} 20. Rad1 {[%clk 0:01:03.9]} 20... Bxe5 {[%clk 0:01:45.6]} 21. Bxe5
{[%clk 0:01:01.8]} 21... Qe7 {[%clk 0:01:40.8]} 22. Qd2 {[%clk 0:00:56.5]} 22...
Rd8 {[%clk 0:01:17.2]} 23. Qh6 {[%clk 0:00:38.4]} 23... Rf7 {[%clk 0:01:01.9]}
24. b3 {[%clk 0:00:21.2]} 24... b6 {[%clk 0:00:58.4]} 25. Ne4 {[%clk 0:00:14.6]}
25... Qf8 {[%clk 0:00:54.1]} 26. Qxf8+ {[%clk 0:00:13.2]} 26... Rxf8 {[%clk
0:00:51.9]} 27. Nf6+ {[%clk 0:00:12.8]} 27... Nxf6 {[%clk 0:00:50.7]} 28. Bxc7
{[%clk 0:00:11.5]} 28... Rc8 {[%clk 0:00:48.8]} 29. Be5 {[%clk 0:00:11.2]} 29...
Bc6 {[%clk 0:00:44]} 30. Rd6 {[%clk 0:00:09.9]} 30... Bxg2 {[%clk 0:00:40.3]}
31. Kxg2 {[%clk 0:00:10.8]} 31... Rce8 {[%clk 0:00:38.2]} 32. Red1 {[%clk
0:00:09.5]} 32... Kf7 {[%clk 0:00:33.6]} 33. f4 {[%clk 0:00:08.2]} 33... Ne4
{[%clk 0:00:28.6]} 34. Rd7+ {[%clk 0:00:07.8]} 34... Re7 {[%clk 0:00:28.6]} 35.
Rxe7+ {[%clk 0:00:07.4]} 35... Kxe7 {[%clk 0:00:27.4]} 36. Kf3 {[%clk 0:00:08]}
36... Nf6 {[%clk 0:00:09.1]} 37. Bd6+ {[%clk 0:00:07.1]} 37... Kf7 {[%clk
0:00:10]} 38. Bxf8 {[%clk 0:00:07.2]} 38... Kxf8 {[%clk 0:00:10.9]} 39. Rd8+
{[%clk 0:00:05.9]} 39... Kf7 {[%clk 0:00:10.6]} 40. Ra8 {[%clk 0:00:06.8]} 40...
Kg7 {[%clk 0:00:10.2]} 41. Rxa7+ {[%clk 0:00:06.7]} 41... Kh6 {[%clk 0:00:11.1]}
42. Rb7 {[%clk 0:00:06.9]} 42... Nh5 {[%clk 0:00:12]} 43. Rxb6 {[%clk
0:00:06.6]} 43... Ng7 {[%clk 0:00:12.9]} 44. a5 {[%clk 0:00:06.6]} 44... Nf5
{[%clk 0:00:13.8]} 45. a6 {[%clk 0:00:06.5]} 45... Nd4+ {[%clk 0:00:14.7]} 46.
Ke4 {[%clk 0:00:06.7]} 46... e5 {[%clk 0:00:11.8]} 47. a7 {[%clk 0:00:06.4]}
47... Nc6 {[%clk 0:00:12.4]} 48. Rxc6 {[%clk 0:00:05.9]} 48... Kg7 {[%clk
0:00:12.4]} 49. a8=Q {[%clk 0:00:05.6]} 49... h5 {[%clk 0:00:13.3]} 50. Qa7+
{[%clk 0:00:05.3]} 50... Kh6 {[%clk 0:00:14.2]} 51. Qa6 {[%clk 0:00:05.2]} 51...
Kh7 {[%clk 0:00:12.5]} 52. Rxg6 {[%clk 0:00:05.7]} 52... Kh8 {[%clk 0:00:12.1]}
53. Rb6 {[%clk 0:00:05.6]} 53... Kh7 {[%clk 0:00:11]} 54. Qa7+ {[%clk
0:00:05.4]} 1-0